bitfinex/quotes_ETHUSD_20260113
["timestamp","ask_amount","ask_price","bid_price","bid_amount"]
[1768329386879,1.07845963,3192.5,3191.9,3.41018616]
[1768329387178,0.0008012,3192.5,3191.9,7.66507937]
[1768329387385,0.0008012,3192.5,3192.1,5.83143449]
[1768329387907,0.002,3192.7,3192.2,1.12196299]
[1768329389005,0.002,3192.7,3192.3,3.13253766]
[1768329389736,0.002,3192.7,3192.4,1.36796299]
[1768329390039,0.002,3192.7,3192.5,0.45005007]
[1768329390743,1.07965843,3192.7,3191.8,4.25493954]
[1768329390909,1.07965843,3192.7,3192.1,0.246]
[1768329391108,4.20990174,3192.6,3192.1,0.246]
[1768329391510,1.07765843,3192.6,3192.1,0.246]
[1768329392110,1.07765843,3192.6,3192.0,0.246]
[1768329393119,4.20996819,3192.6,3192.0,0.246]
[1768329394530,1.07765843,3192.4,3191.5,0.246]
[1768329395127,1.06074972,3192.2,3191.5,3.37930953]
[1768329395712,1.06074972,3192.2,3191.5,0.246]
[1768329395940,1.06074972,3192.2,3191.5,3.37931809]
[1768329396103,3.13253766,3192.3,3191.6,1.05226687]
[1768329396437,0.002,3192.3,3191.6,1.80876647]
[1768329396635,0.002,3192.3,3191.7,0.246]
[1768329397205,0.002,3192.3,3191.8,1.08359715]
[1768329397717,0.002,3192.6,3192.2,1.05226687]
[1768329397904,0.002,3192.8,3192.4,1.05226687]
[1768329398106,0.002,3192.8,3192.5,0.57617384]
[1768329398530,1.06074972,3192.7,3191.9,0.246]
[1768329398737,1.06274972,3192.8,3191.9,6.00773837]
[1768329398937,0.002,3192.8,3192.0,1.08359519]
[1768329399144,3.13409593,3192.8,3192.0,4.43107129]
[1768329399313,0.002,3192.8,3192.2,1.05226687]
[1768329399512,0.002,3192.8,3192.3,0.57617384]
[1768329401207,0.002,3192.8,3192.0,4.43107129]
[1768329402038,0.002,3192.8,3192.1,0.246]
[1768329403539,0.002,3192.8,3192.1,3.37865686]
[1768329404792,0.002,3192.8,3192.2,0.246]
[1768329405157,1.06274972,3192.8,3191.9,1.05226687]
[1768329405359,1.06074972,3192.6,3191.9,0.57617384]
[1768329405559,1.06074972,3192.6,3192.0,0.246]
[1768329405862,1.06074972,3192.6,3191.9,0.57617384]
[1768329406163,1.06074972,3192.5,3191.5,3.13327283]
[1768329406360,1.06074972,3192.2,3191.3,1.29826687]
[1768329406561,1.06074972,3192.1,3191.4,3.13339278]
[1768329406862,1.06074972,3192.1,3191.4,3.37939278]
[1768329407471,1.06074972,3192.1,3191.4,6.51281384]
[1768329408178,1.06074972,3192.3,3191.4,6.51281384]
[1768329408497,1.06074972,3192.3,3192.0,0.001]
[1768329409501,0.57702212,3192.5,3192.0,0.247]
[1768329409698,4.19487688,3192.8,3192.0,1.29926687]
[1768329409909,1.06274972,3192.8,3192.0,1.29926687]
[1768329410116,4.19479979,3192.8,3192.0,1.29926687]
[1768329410420,7.74680989,3192.8,3192.0,1.05326687]
[1768329410590,7.74680989,3192.8,3192.1,0.246]
[1768329411011,4.61475982,3192.8,3192.1,0.246]
[1768329411475,0.002,3192.8,3192.2,1.05226687]
[1768329412786,0.002,3192.8,3192.3,4.18480453]
[1768329413201,0.002,3192.8,3192.4,1.05226687]
[1768329413575,0.002,3192.8,3192.4,1.08359126]
[1768329413802,0.00280048,3192.9,3192.4,1.08359126]
[1768329413975,0.00280048,3192.9,3192.5,1.78713353]
[1768329414176,0.00280048,3192.9,3192.6,0.246]
[1768329417570,0.00280048,3192.9,3192.6,6.51048558]
[1768329417788,0.00280048,3192.9,3192.6,7.56275245]
[1768329417984,0.00280048,3192.9,3192.6,4.43050914]
[1768329418198,0.00280048,3192.9,3192.7,0.75628356]
[1768329420908,0.00280048,3192.9,3192.8,1.05226687]
[1768329421076,0.002,3193.0,3192.8,1.05226687]
[1768329421276,0.002,3193.0,3192.7,3.1321452]
[1768329422384,0.002,3194.2,3193.9,1.05226687]
[1768329422603,0.002,3194.2,3192.7,6.2642904]
[1768329422604,0.002,3194.2,3193.8,0.246]
[1768329423392,0.002,3194.2,3193.8,1.29826687]
[1768329423611,0.002,3194.2,3193.8,0.246]
[1768329424289,1.06274972,3194.2,3193.8,0.246]
[1768329424490,1.06074972,3194.0,3193.2,3.13161633]
[1768329424702,1.06074972,3194.0,3193.3,0.246]
[1768329425098,1.06074972,3194.0,3193.4,0.246]
[1768329425326,1.06074972,3194.0,3193.5,0.246]
[1768329427787,1.06074972,3194.0,3193.0,3.13183145]
[1768329427788,1.04085457,3193.9,3192.7,1.01852923]
[1768329428125,1.04085457,3193.9,3193.0,3.13179651]
[1768329428289,1.04085457,3193.8,3193.1,0.246]
[1768329428487,1.04085457,3193.8,3192.8,3.13202136]
[1768329428488,1.04085457,3193.6,3192.8,3.1320471]
[1768329428686,1.04085457,3193.6,3192.5,3.13305112]
[1768329428687,1.04085457,3193.6,3192.5,0.00080056]
[1768329428910,6.26232896,3193.7,3192.6,3.37818241]
[1768329428911,1.04085457,3193.4,3192.6,3.37818241]
[1768329429121,1.04085457,3193.4,3192.7,3.37809906]
[1768329429330,1.04085457,3193.4,3192.8,0.65102815]
[1768329429812,1.04085457,3193.6,3192.8,0.65102815]
[1768329430397,3.13116448,3193.7,3192.8,1.66955738]
[1768329430596,1.04085457,3193.8,3192.8,4.8015701]
[1768329430796,1.04085457,3193.8,3192.8,3.78304087]
[1768329431028,1.04085457,3193.8,3192.8,0.65102815]
[1768329431223,1.04085457,3193.8,3192.8,3.78306895]
[1768329431808,1.04085457,3193.8,3193.1,0.001]
[1768329433327,4.17201905,3193.7,3193.1,0.001]
[1768329434349,1.04085457,3193.7,3193.1,0.03231752]
[1768329434632,3.13087038,3194.0,3193.1,0.03231752]
[1768329434835,3.54824287,3194.0,3193.1,0.001]
[1768329434994,4.58909744,3194.0,3193.1,0.001]
[1768329435392,4.58909744,3194.0,3193.1,3.13275284]
[1768329435809,4.58909744,3194.0,3193.2,0.03131654]
[1768329436027,1.04085457,3193.9,3193.1,0.001]
[1768329437435,3.13106644,3193.8,3193.1,0.001]
[1768329438308,1.06352143,3194.1,3193.1,1.44728771]
[1768329438506,4.19429379,3194.1,3193.1,1.44728771]
[1768329438728,1.06352143,3194.0,3193.1,1.44728771]
[1768329439254,1.06352143,3194.0,3193.1,0.001]
[1768329439467,1.06352143,3194.0,3193.2,0.246]
[1768329439623,1.06352143,3193.8,3193.2,0.246]
[1768329440718,1.06352143,3193.8,3193.1,0.001]
[1768329440952,1.06352143,3193.1,3191.9,3.13292376]
[1768329441110,1.06352143,3192.8,3191.9,0.246]
[1768329441536,1.06352143,3192.8,3191.9,3.37886149]
[1768329441718,1.06352143,3192.8,3192.0,3.13380573]
[1768329441934,4.19558878,3192.8,3192.0,3.13380573]
[1768329442242,0.00080056,3192.9,3192.0,4.14036004]
[1768329442540,0.00080056,3192.9,3192.1,1.78980955]
[1768329443233,7.83614278,3193.6,3192.1,1.78980955]
[1768329443234,3.13144374,3193.5,3192.6,1.00655431]
[1768329443429,3.13144374,3193.5,3192.7,0.246]
[1768329443646,4.19472202,3193.7,3192.8,3.16336757]
[1768329443844,4.19472202,3193.7,3192.8,0.78612979]
[1768329444016,1.06352143,3193.6,3192.8,0.75480932]
[1768329444211,1.06352143,3193.6,3192.7,0.246]
[1768329444420,1.06352143,3193.6,3192.6,3.13220067]
[1768329444633,1.06352143,3193.6,3192.8,0.246]
[1768329444834,3.13120059,3193.7,3192.9,0.03131949]
[1768329445543,3.13120059,3193.7,3192.8,0.246]
[1768329445544,6.26240118,3193.7,3192.8,0.246]
[1768329445721,4.19472202,3193.7,3192.8,0.58381363]
[1768329445928,1.06352143,3193.7,3192.9,3.13194901]
[1768329446130,1.06352143,3193.7,3192.9,3.1632685]
[1768329446314,1.06352143,3193.6,3192.9,0.03131949]
[1768329446514,1.06352143,3193.4,3192.5,0.00080064]
[1768329448130,1.06352143,3193.2,3192.5,0.00080064]
[1768329449930,4.19501701,3193.4,3192.5,0.34118567]
[1768329450130,3.13149558,3193.4,3192.5,1.34773998]
[1768329450345,4.19479387,3193.6,3192.6,3.13224331]
[1768329450641,7.32606631,3193.6,3192.6,3.13224331]
[1768329450842,7.32606631,3193.6,3192.6,3.89347526]
[1768329451635,7.32606631,3193.6,3192.7,0.02353146]
[1768329451865,7.32606631,3193.6,3192.8,0.246]
[1768329452066,0.039142,3193.5,3192.8,0.246]
[1768329452451,0.039142,3193.5,3192.6,0.76123195]
[1768329452452,3.13145863,3193.4,3192.9,0.246]
[1768329452855,3.17060186,3193.4,3192.9,0.246]
[1768329454434,1.06352143,3193.3,3192.7,0.246]
[1768329454748,1.06352143,3193.2,3192.7,0.246]
[1768329455657,0.002,3193.1,3192.7,0.246]
[1768329456047,0.002,3193.1,3192.5,0.00080064]
[1768329456249,0.002,3193.1,3192.6,0.246]
[1768329456461,0.97582393,3193.1,3192.6,0.246]
[1768329456763,0.002,3193.1,3192.6,0.246]
[1768329457195,0.97582393,3193.1,3192.6,0.246]
[1768329458057,0.97582393,3193.1,3192.6,3.40177033]
[1768329458362,0.002,3193.1,3192.6,3.74202743]
[1768329458989,0.002,3193.1,3192.6,3.71849095]
[1768329459594,0.002,3193.1,3192.7,1.07138761]
[1768329459802,0.002,3193.4,3192.9,1.04785186]
[1768329460861,0.002,3193.4,3192.6,9.98297757]
[1768329460862,4.10505078,3193.7,3192.7,1.04785186]
[1768329461058,4.10505078,3193.7,3192.9,3.13194901]
[1768329463092,0.97382393,3193.7,3192.9,3.13194901]
[1768329463701,4.1050049,3193.7,3192.9,3.13194901]
[1768329464189,0.97382393,3193.6,3192.9,3.13194901]
[1768329464819,0.97382393,3193.6,3193.0,0.246]
[1768329464988,0.97382393,3193.6,3193.1,0.3377949]
[1768329466540,0.97382393,3193.5,3193.1,0.3377949]
[1768329467293,0.97382393,3193.5,3193.2,0.246]
[1768329468325,0.002,3193.3,3193.2,0.246]
[1768329471211,0.002,3193.3,3192.9,0.001]
[1768329471415,0.002,3193.3,3193.2,0.246]
[1768329472340,0.002,3193.3,3193.2,0.5837821]
[1768329473837,0.97582393,3193.6,3193.2,0.5837821]
[1768329475538,0.002,3193.6,3193.2,3.71543342]
[1768329475832,0.002,3193.6,3193.2,3.71541533]
[1768329476051,0.002,3193.6,3193.3,0.47632672]
[1768329476454,0.002,3193.6,3193.2,0.5837821]
[1768329477059,0.002,3193.6,3193.2,1.63163396]
[1768329477849,0.002,3193.6,3193.2,0.5837821]
[1768329478149,0.002,3193.6,3193.2,0.246]
[1768329481254,0.97582393,3193.6,3193.3,0.246]
[1768329481870,0.97582393,3193.6,3193.2,0.246]
[1768329482077,0.97582393,3193.6,3192.9,0.001]
[1768329482078,4.1071472,3193.6,3192.9,0.001]
[1768329482228,0.97382393,3193.5,3193.0,0.246]
[1768329483458,0.97382393,3193.5,3192.9,0.001]
[1768329483663,1.01296593,3193.5,3192.9,0.001]
[1768329483870,1.01296593,3193.5,3192.9,0.247]
[1768329484243,3.13145863,3193.4,3192.9,0.247]
[1768329484570,4.10528256,3193.4,3192.9,0.247]
[1768329484725,0.97382393,3193.3,3192.9,0.247]
[1768329485350,3.17060186,3193.4,3192.9,0.247]
[1768329486161,1.01283148,3193.3,3192.9,0.247]
[1768329486359,1.01283148,3193.3,3192.9,0.001]
[1768329487666,4.14421237,3193.5,3192.9,0.001]
[1768329488530,1.01283148,3193.4,3192.9,0.001]
[1768329489337,1.01283148,3193.2,3192.5,0.00080064]
[1768329489662,1.01363212,3192.9,3192.4,0.246]
[1768329489853,1.01363212,3192.9,3192.3,0.001]
[1768329490231,1.01283148,3192.7,3192.3,0.001]
[1768329491176,3.1320471,3192.8,3192.3,0.001]
[1768329491544,6.2640942,3192.8,3192.3,0.001]
[1768329491744,0.43999169,3192.7,3192.3,0.001]
[1768329492049,0.43999169,3192.7,3192.6,0.001]
[1768329492248,4.58496837,3192.7,3192.6,0.001]
[1768329493170,4.58496837,3192.7,3192.3,0.001]
[1768329493355,1.01283148,3192.6,3192.3,0.001]
[1768329493563,1.01283148,3192.6,3192.0,0.001]
[1768329493564,1.01283148,3192.5,3192.0,0.001]
[1768329494255,4.14523056,3192.5,3192.0,0.001]
[1768329495776,1.01283148,3192.4,3192.0,0.001]
[1768329496274,0.47439337,3192.6,3192.0,0.001]
[1768329496570,4.07069648,3192.8,3192.0,1.0077857]
[1768329496771,3.13207962,3192.8,3192.0,1.0077857]
[1768329496950,3.13282352,3192.9,3192.0,1.0077857]
[1768329497339,0.00080064,3192.9,3192.3,0.98323093]
[1768329497539,0.00080064,3192.9,3192.5,0.98323093]
[1768329497963,0.00080064,3192.9,3192.4,0.246]
[1768329497964,0.00080064,3192.9,3192.4,0.26954053]
[1768329498185,0.00080064,3192.9,3192.5,0.246]
[1768329498352,0.00080064,3192.9,3192.5,3.37832617]
[1768329498567,0.00080064,3192.9,3192.6,0.02353906]
[1768329498769,0.00080064,3192.9,3192.6,1.00676999]
[1768329498969,0.00080064,3192.9,3192.6,0.98323093]
[1768329501207,0.00080064,3192.9,3192.6,4.11547271]
[1768329501764,0.00080064,3192.9,3192.5,4.13005826]
[1768329501992,0.00080064,3192.9,3192.6,0.51132892]
[1768329502233,0.00080064,3192.9,3192.3,3.13251207]
[1768329502234,0.9394175,3192.9,3192.2,3.1326005]
[1768329502464,0.9394175,3192.9,3192.3,0.246]
[1768329502664,0.00080064,3192.9,3192.3,0.246]
[1768329502865,0.9394175,3192.9,3192.3,0.246]
[1768329503570,0.9394175,3192.9,3192.5,0.001]
[1768329504516,0.93861686,3192.8,3192.5,0.001]
[1768329504737,0.40792432,3192.9,3192.5,0.001]
[1768329507493,3.53989477,3192.9,3192.5,0.001]
[1768329507669,4.47851163,3192.9,3192.5,0.001]
[1768329508010,0.93861686,3192.8,3192.5,0.001]
[1768329508508,0.44785116,3192.7,3192.5,0.001]
[1768329509111,0.93861686,3192.7,3192.5,0.001]
[1768329509277,6.26414016,3192.8,3192.0,0.001]
[1768329509278,0.93861686,3192.5,3192.0,0.001]
[1768329510951,4.0710564,3192.4,3192.0,0.001]
[1768329513577,0.93861686,3192.3,3192.0,0.001]
[1768329513752,3.13276849,3192.9,3192.0,0.001]
[1768329513936,0.31327685,3192.8,3192.0,0.98423093]
[1768329514957,0.96697518,3192.7,3192.0,0.001]
[1768329515253,0.96697518,3192.7,3192.3,0.001]
[1768329515420,4.10121849,3192.6,3192.3,0.001]
[1768329515622,0.96697518,3192.5,3192.3,0.001]
[1768329515817,1.37709703,3192.4,3191.5,1.01249677]
[1768329516043,0.96697518,3192.4,3191.5,1.01249677]
[1768329516251,0.96697518,3192.4,3191.6,0.246]
[1768329518572,0.96697518,3192.2,3191.4,3.13342102]
[1768329518776,0.96697518,3192.2,3191.6,0.246]
[1768329519748,0.96697518,3192.2,3191.5,0.246]
[1768329519964,1.37693408,3192.1,3191.5,0.246]
[1768329520171,0.96697518,3192.0,3191.5,0.246]
[1768329520377,0.4099589,3192.1,3190.9,4.14638062]
[1768329520378,0.96697518,3191.9,3190.9,4.14638062]
[1768329520554,0.96697518,3191.8,3191.2,0.246]
[1768329521676,0.96697518,3192.4,3191.4,1.01249677]
[1768329522074,0.96697518,3192.4,3191.5,0.246]
[1768329522275,0.96697518,3192.2,3191.5,0.246]
[1768329522479,0.96697518,3192.4,3191.5,3.37929709]
[1768329522792,0.96697518,3192.4,3191.5,4.39179386]
[1768329523094,0.96897518,3192.6,3191.6,1.03605607]
[1768329523472,0.96897518,3192.6,3191.6,1.01249677]
[1768329523673,0.96697518,3192.4,3191.6,1.01249677]
[1768329524567,0.96697518,3192.4,3191.5,3.37929709]
[1768329524568,0.96697518,3192.3,3191.3,3.13346537]
[1768329524774,0.96697518,3192.3,3191.4,0.246]
[1768329524983,0.96697518,3192.3,3191.4,4.39190205]
[1768329525187,0.96697518,3192.5,3191.7,1.01249677]
[1768329525405,0.4101245,3192.4,3191.7,1.01249677]
[1768329525576,0.002,3192.6,3191.8,1.03605288]
[1768329525905,0.96897518,3192.6,3191.8,1.03605288]
[1768329526111,4.10122005,3192.6,3191.8,1.03605288]
[1768329527572,4.70800033,3191.9,3191.4,0.246]
[1768329527775,0.96697518,3191.7,3191.4,0.246]
[1768329527999,1.00613558,3192.0,3191.4,0.246]
[1768329528677,4.0999054,3191.9,3191.4,0.246]
[1768329529814,4.13906702,3191.9,3191.4,0.246]
[1768329530388,7.27199724,3191.9,3191.0,1.01249677]
[1768329530594,4.0999054,3191.9,3191.1,0.246]
[1768329531195,0.96697518,3191.9,3191.1,0.246]
[1768329531515,0.002,3192.1,3191.2,1.01249677]
[1768329532017,3.13476138,3192.1,3191.2,1.01249677]
[1768329533405,0.002,3192.1,3191.3,3.13351925]
[1768329533606,0.002,3192.1,3191.4,1.01249677]
[1768329534257,0.002,3192.4,3192.1,1.01249677]
[1768329534554,0.002,3192.4,3192.2,0.246]
[1768329534908,0.002,3192.4,3191.3,9.40055775]
[1768329534909,0.002,3192.4,3191.4,1.01249677]
[1768329535110,0.002,3192.4,3191.7,1.01249677]
[1768329535320,0.002,3192.4,3191.5,1.25849677]
[1768329535733,0.002,3192.4,3191.6,4.14572148]
[1768329535928,0.002,3192.4,3191.7,0.75249523]
[1768329537630,0.002,3192.4,3191.7,3.88556755]
[1768329539048,0.96897518,3192.4,3191.7,0.75249523]
[1768329539218,0.96897518,3192.4,3191.6,3.13319171]
[1768329539418,0.96897518,3192.4,3191.7,0.246]
[1768329540328,0.002,3192.1,3191.7,0.246]
[1768329543238,0.002,3192.1,3191.5,0.001]
[1768329543239,1.00813435,3192.1,3191.5,0.001]
[1768329543455,0.96897518,3192.1,3191.5,0.001]
[1768329543757,0.002,3192.1,3191.5,4.14674719]
[1768329543924,0.002,3192.1,3191.6,1.01249677]
[1768329544347,0.002,3192.1,3191.6,4.14571941]
[1768329544565,0.002,3192.1,3191.6,4.56039135]
[1768329544858,0.002,3192.1,3191.6,0.41467194]
[1768329545261,0.002,3192.1,3191.7,0.246]
[1768329545977,1.00376719,3192.1,3191.5,0.247]
[1768329546282,0.002,3192.1,3191.5,1.24493538]
[1768329547069,0.002,3192.1,3191.5,0.247]
[1768329547283,1.00376719,3192.1,3191.5,0.247]
[1768329547640,1.00376719,3192.1,3191.5,0.001]
[1768329547862,1.00376719,3192.1,3191.5,0.247]
[1768329549338,3.13283208,3192.0,3191.5,0.247]
[1768329550073,4.1365405,3192.1,3191.5,0.247]
[1768329550967,7.26931381,3192.1,3191.5,0.247]
[1768329551346,4.1365405,3192.1,3191.5,0.247]
[1768329551676,1.00376719,3192.1,3191.5,0.247]
[1768329551969,0.002,3192.1,3191.8,0.001]
[1768329552489,3.13475081,3192.1,3191.8,0.001]
[1768329557578,0.93423753,3191.5,3190.3,0.99281051]
[1768329557897,0.93423753,3191.2,3190.2,0.99281051]
[1768329558190,0.246,3191.5,3190.4,0.99281051]
[1768329558579,1.18023753,3191.5,3190.4,0.99281051]
[1768329558895,1.18023753,3191.5,3190.3,6.51499549]
[1768329558896,1.18023753,3191.5,3190.6,0.99281051]
[1768329559196,3.13342106,3191.4,3190.6,0.99281051]
[1768329559346,4.06765859,3191.4,3190.5,0.99281051]
[1768329559689,4.06765859,3191.4,3190.5,1.23881051]
[1768329559847,4.06765859,3191.4,3190.5,4.37310321]
[1768329560176,4.06765859,3191.4,3190.6,0.99281051]
[1768329561068,7.20107965,3191.4,3190.5,0.246]
[1768329561457,4.06765859,3191.4,3190.5,3.38028192]
[1768329561663,7.20107965,3191.4,3190.5,0.246]
[1768329562564,7.20107965,3191.4,3190.5,1.23881051]
[1768329562771,4.06765859,3191.4,3190.5,4.3730998]
[1768329563482,0.93423753,3191.4,3190.9,0.001]
[1768329563694,0.002,3192.1,3191.1,0.99281051]
[1768329563847,0.93423753,3191.9,3191.1,0.99281051]
[1768329564875,0.93423753,3191.9,3191.0,0.246]
[1768329565483,4.06726591,3191.8,3191.0,0.246]
[1768329565686,4.06726591,3191.8,3191.0,0.68338093]
[1768329565882,3.13302838,3191.8,3191.1,0.99281051]
[1768329566201,3.13296837,3191.9,3191.1,0.99281051]
[1768329567049,6.26593674,3191.9,3191.1,0.99281051]
[1768329568080,0.002,3192.1,3191.2,0.99281051]
[1768329568253,3.13478705,3192.1,3191.4,0.99281051]
[1768329568665,6.2675741,3192.1,3191.4,0.99281051]
[1768329569586,3.13478705,3192.1,3191.4,0.99281051]
[1768329570116,0.002,3192.1,3191.4,0.99281051]
[1768329571920,0.002,3192.1,3191.5,0.99281051]
[1768329572128,0.002,3192.1,3191.7,0.99281051]
[1768329572818,0.002,3192.1,3191.5,1.23881051]
[1768329574994,0.002,3192.1,3191.5,0.99281051]
[1768329575627,0.002,3191.8,3191.5,0.99281051]
[1768329576305,0.002,3192.1,3191.6,0.92377329]
[1768329576623,0.002,3192.1,3191.7,0.92377329]
[1768329578808,0.002,3192.1,3191.5,0.92377329]
[1768329579208,0.002,3192.1,3191.4,0.246]
[1768329579901,0.002,3192.1,3191.4,1.16977329]
[1768329580447,0.002,3192.1,3191.5,0.92377329]
[1768329580739,0.96118026,3192.1,3191.4,3.37938932]
[1768329581034,0.96118026,3192.1,3191.5,0.43031626]
[1768329581252,0.96118026,3192.1,3191.5,3.56362655]
[1768329581534,0.002,3192.1,3191.6,0.92377329]
[1768329582538,3.13261515,3192.3,3191.8,0.92377329]
[1768329582736,0.95918026,3193.0,3192.2,0.92377329]
[1768329582949,3.13479523,3192.9,3192.2,0.92377329]
[1768329583124,3.13479523,3192.9,3191.9,0.92377329]
[1768329583125,0.95918026,3192.8,3191.9,0.92377329]
[1768329583313,0.95918026,3192.8,3192.0,0.246]
[1768329583645,0.03915181,3192.7,3192.0,0.83374935]
[1768329583814,0.95918026,3192.7,3192.0,0.83374935]
[1768329584009,0.95918026,3192.7,3192.0,0.246]
[1768329584209,0.00280064,3192.9,3192.2,0.92377329]
[1768329585885,0.00280064,3192.9,3192.3,0.92377329]
[1768329587447,0.002,3192.6,3192.3,0.92377329]
[1768329587770,0.00280064,3192.9,3192.3,0.92377329]
[1768329587971,0.00280064,3192.9,3192.3,1.80018511]
[1768329589500,6.492,3193.6,3192.3,1.80018511]
[1768329589501,3.13170863,3193.2,3192.5,0.92377329]
[1768329589689,3.13170863,3193.2,3192.5,1.17057401]
[1768329590974,3.13170863,3193.2,3192.5,4.30290067]
[1768329591312,3.13170863,3193.2,3192.6,0.43029007]
[1768329592085,3.13170863,3193.2,3192.5,1.17057401]
[1768329592805,4.09088889,3193.2,3192.5,0.24680072]
[1768329594119,7.22259752,3193.2,3192.5,0.24680072]
[1768329594321,7.22259752,3193.2,3192.5,0.00080072]
[1768329594322,0.99832717,3193.1,3192.5,0.00080072]
[1768329594475,0.95918026,3193.1,3192.5,0.24680072]
[1768329595303,0.95918026,3193.0,3192.5,0.00080072]
[1768329596072,0.95918026,3192.8,3191.7,8.55552477]
[1768329596373,0.24680072,3192.9,3191.6,8.44102298]
[1768329596374,0.95918026,3192.6,3191.6,8.44102298]
[1768329596774,0.95918026,3192.6,3191.7,3.97722333]
[1768329597606,0.95918026,3192.6,3191.7,0.8441023]
[1768329597797,0.95918026,3192.6,3191.6,0.246]
[1768329598189,0.95821009,3192.6,3191.6,3.37921898]
[1768329598777,0.95918026,3192.4,3191.6,0.246]
[1768329599196,0.95918026,3192.4,3192.0,0.001]
[1768329600818,0.95918026,3192.2,3192.0,0.001]
[1768329600982,6.26507532,3192.3,3192.0,0.001]
[1768329601818,3.13253766,3192.3,3192.0,0.001]
[1768329603504,6.26487908,3192.4,3192.0,0.001]
[1768329603693,6.26487908,3192.4,3191.0,3.85]
[1768329603694,6.26487908,3192.4,3191.2,4.05734721]
[1768329603888,0.95918026,3192.3,3191.2,4.05734721]
[1768329604213,0.95918026,3192.3,3191.3,0.246]
[1768329604378,0.95918026,3192.1,3191.3,0.246]
[1768329605023,3.37843954,3192.4,3191.5,0.96773695]
[1768329605214,3.13243954,3192.4,3191.6,3.13320586]
[1768329605419,3.13243954,3192.4,3191.7,0.96773695]
[1768329605617,3.37831717,3192.6,3191.7,0.96773695]
[1768329605618,3.13234142,3192.5,3191.7,0.96773695]
[1768329605816,0.33783414,3192.4,3191.7,0.96773695]
[1768329606819,6.26473205,3192.5,3191.7,0.96773695]
[1768329609307,7.20466062,3192.5,3191.7,0.96773695]
[1768329609510,4.07226999,3192.5,3191.7,4.10084077]
[1768329610488,4.07226999,3192.5,3191.7,0.96773695]
[1768329611009,4.07226999,3192.5,3191.7,4.10084027]
[1768329611208,4.07226999,3192.5,3192.0,0.001]
[1768329611412,4.07227467,3192.5,3192.0,0.001]
[1768329611602,0.246,3192.6,3192.0,0.001]
[1768329611603,0.002,3192.2,3192.0,0.96873695]
[1768329612223,0.002,3192.2,3192.0,0.001]
[1768329613127,0.94192857,3192.2,3192.0,0.001]
[1768329613903,0.002,3192.2,3192.0,0.001]
[1768329622216,0.95094922,3192.2,3192.0,0.001]
[1768329623142,0.002,3192.2,3192.0,0.001]
[1768329627614,0.95094922,3192.2,3192.0,0.001]
[1768329628849,0.002,3192.5,3192.0,0.90949607]
[1768329629054,0.002,3192.5,3192.0,5.61702929]
[1768329629350,0.002,3192.5,3192.0,6.17873222]
[1768329629518,0.00280072,3192.9,3192.3,4.70753322]
[1768329629717,0.00280072,3192.9,3192.3,5.61602929]
[1768329630081,3.13475065,3192.9,3192.3,5.61602929]
[1768329631349,0.00280072,3192.9,3192.3,5.61602929]
[1768329631552,0.00280072,3192.9,3192.4,0.56160293]
[1768329632916,3.13366862,3193.2,3192.7,0.90849607]
[1768329633116,3.13366862,3193.2,3192.6,4.70753322]
[1768329633351,0.95094922,3193.2,3192.5,0.90929687]
[1768329633534,0.95094922,3193.2,3192.6,0.46033361]
[1768329633730,0.95094922,3193.2,3192.5,0.90929687]
[1768329634557,0.95094922,3193.2,3192.5,4.04162936]
[1768329634724,0.002,3193.2,3192.6,0.90849607]
[1768329635624,0.002,3192.9,3192.6,0.90849607]
[1768329637461,0.002,3193.2,3192.8,5.63968011]
[1768329638756,0.002,3193.2,3192.9,0.93214689]
[1768329639725,0.002,3193.2,3192.9,4.06408987]
[1768329639939,0.002,3193.2,3192.9,0.93214689]
[1768329642161,0.002,3193.2,3192.8,0.246]
[1768329642464,0.002,3193.2,3192.9,0.47390108]
[1768329643326,0.002,3193.2,3192.9,0.44490108]
[1768329643532,0.97687206,3193.2,3192.6,0.246]
[1768329644154,0.97687206,3193.2,3192.6,3.37822577]
[1768329645574,0.97687206,3193.2,3192.6,0.246]
[1768329645962,0.97687206,3193.2,3192.6,3.37820345]
[1768329646274,0.97687206,3193.2,3192.7,0.33790043]
[1768329647171,0.97687206,3193.2,3192.9,0.001]
[1768329650963,0.002,3193.2,3192.9,0.001]
[1768329656974,0.97687206,3193.2,3192.9,0.001]
[1768329657175,0.002,3193.2,3192.9,0.001]
[1768329660861,0.97687206,3193.2,3192.9,0.001]
[1768329661067,1.3857158,3193.1,3192.9,0.001]
[1768329661475,0.97487206,3193.0,3192.9,0.001]
[1768329661671,3.54261973,3193.1,3192.9,0.001]
[1768329661854,4.10855075,3193.2,3192.9,0.001]
[1768329662963,0.97687206,3193.2,3192.9,0.001]
[1768329663384,4.10853632,3193.2,3192.9,0.001]
[1768329663897,0.97487206,3193.1,3192.5,0.0008008]
[1768329664469,1.01401897,3193.1,3192.5,0.0008008]
[1768329664799,0.97487206,3193.1,3192.5,0.0008008]
[1768329665587,0.002,3193.2,3192.6,0.91309688]
[1768329665791,0.96652041,3193.2,3192.5,0.0008008]
[1768329666000,0.96452041,3193.1,3192.5,0.0008008]
[1768329668497,4.096312,3193.1,3192.5,0.0008008]
[1768329669675,0.96452041,3193.1,3192.5,0.0008008]
[1768329669878,0.002,3193.2,3192.5,0.91389768]
[1768329670192,0.002,3193.6,3193.1,0.91309688]
[1768329670374,0.002,3193.6,3193.3,0.91309688]
[1768329670762,0.002,3193.6,3193.2,3.13165117]
[1768329670959,0.002,3193.6,3193.2,3.13164007]
[1768329671187,0.002,3193.6,3193.1,4.29080152]
[1768329671460,0.002,3193.6,3193.1,0.91309688]
[1768329671793,0.96652041,3193.6,3193.0,0.246]
[1768329672291,0.96652041,3193.6,3192.8,3.13302201]
[1768329672463,0.96652041,3193.6,3193.0,0.91309688]
[1768329672464,0.002,3193.6,3193.0,0.91309688]
[1768329673792,4.09760221,3193.8,3193.3,0.91309688]
[1768329673793,0.002,3193.8,3193.3,0.91309688]
[1768329675499,0.002,3193.8,3193.3,4.04459853]
[1768329675899,0.002,3193.8,3193.3,0.91309688]
[1768329676070,0.002,3193.8,3193.4,0.40447191]